bitfinex/quotes_ETHUSD_20240710
["timestamp","ask_amount","ask_price","bid_price","bid_amount"]
[1720578370266,0.50225252,3067.0,3066.1,2.3292]
[1720578370423,0.06789827,3067.0,3066.1,2.66012]
[1720578374324,0.98,3066.8,3066.1,2.3292]
[1720578374525,0.98,3066.6,3066.1,2.3292]
[1720578374839,0.06790374,3066.5,3066.1,2.3292]
[1720578376272,0.98,3066.4,3065.6,2.4393]
[1720578376849,0.06790374,3066.3,3065.6,2.4393]
[1720578377364,0.98,3066.4,3065.6,2.4393]
[1720578377571,0.06790374,3066.2,3065.6,2.4393]
[1720578377736,0.98,3066.4,3065.7,1.08893]
[1720578377936,0.98,3066.4,3065.6,2.4393]
[1720578378235,0.43468535,3066.6,3065.7,0.98]
[1720578378236,0.06790374,3066.3,3065.7,0.98]
[1720578378631,0.77629735,3066.7,3065.9,0.98]
[1720578378825,0.06790374,3066.2,3065.9,0.98]
[1720578379027,0.77629735,3066.7,3065.9,0.98]
[1720578379227,1.25692709,3066.7,3065.7,0.98]
[1720578379422,0.50247781,3066.6,3065.7,0.98]
[1720578379658,0.06790374,3066.6,3065.7,0.98]
[1720578380261,1.04790374,3066.6,3065.7,0.98]
[1720578380468,1.48247761,3066.6,3065.8,0.34193]
[1720578380763,1.04790374,3066.6,3065.8,0.34193]
[1720578380925,1.48247901,3066.6,3065.8,0.34193]
[1720578382165,1.04790374,3066.6,3065.8,0.34193]
[1720578382870,1.48245682,3066.6,3065.8,0.34193]
[1720578383180,1.04790374,3066.6,3065.8,0.34193]
[1720578383373,1.04790374,3066.6,3065.6,2.4393]
[1720578383374,0.98,3066.4,3065.6,2.4393]
[1720578383732,0.06809315,3066.3,3065.6,2.4393]
[1720578387270,1.321612,3066.7,3065.7,0.98]
[1720578387469,0.06797242,3066.2,3065.8,0.34193]
[1720578387779,0.06797242,3066.2,3065.7,0.98]
[1720578387780,1.321612,3066.7,3065.7,0.98]
[1720578388157,0.06797242,3066.6,3065.7,0.98]
[1720578388637,0.5025275,3066.6,3065.7,0.98]
[1720578388840,0.06797242,3066.6,3065.7,0.98]
[1720578390067,0.50253342,3066.6,3065.7,0.98]
[1720578390374,0.50253342,3066.6,3065.6,2.4393]
[1720578390563,0.50253342,3066.6,3065.7,0.24393]
[1720578393182,0.50254407,3066.6,3065.7,0.24393]
[1720578394279,0.06797242,3066.6,3066.3,0.98]
[1720578394511,0.06797242,3066.6,3066.4,0.06521616]
[1720578394802,0.34150232,3067.3,3066.5,3.3018]
[1720578394966,0.06320541,3067.2,3066.5,3.3018]
[1720578396801,0.06320541,3067.2,3066.6,0.06521284]
[1720578397089,0.06320541,3067.2,3066.5,2.65198]
[1720578400601,0.06320541,3067.2,3066.5,3.63198]
[1720578404124,0.06320541,3067.2,3066.5,0.33018]
[1720578404427,0.06320541,3067.2,3066.3,0.98]
[1720578404428,1.04320541,3067.2,3066.3,0.98]
[1720578404593,0.98,3067.0,3066.2,2.2812]
[1720578404800,0.98,3067.0,3066.2,2.50932]
[1720578404977,0.06144816,3066.9,3066.2,2.50932]
[1720578406484,0.06144816,3066.9,3066.3,1.04521763]
[1720578406692,0.06144816,3066.9,3066.3,0.98]
[1720578406889,0.43424565,3067.3,3066.3,0.98]
[1720578407208,0.43424565,3067.3,3066.5,0.98]
[1720578407414,1.41424565,3067.6,3066.5,0.98]
[1720578407589,4.41424565,3067.6,3066.5,0.98]
[1720578407771,0.43424565,3067.5,3066.5,0.98]
[1720578407970,0.98,3067.4,3066.5,0.98]
[1720578408174,1.41424565,3067.4,3066.5,0.98]
[1720578408613,0.06133537,3067.3,3066.4,0.348932]
[1720578409823,0.49555208,3067.3,3066.4,0.348932]
[1720578410030,0.98,3067.2,3066.3,0.98]
[1720578410533,0.06133537,3067.1,3066.3,0.98]
[1720578411431,0.98,3067.4,3066.3,0.98]
[1720578411931,0.06133537,3067.3,3066.3,0.98]
[1720578420715,0.49552481,3067.3,3066.3,0.98]
[1720578421039,0.49552481,3067.3,3066.4,0.348932]
[1720578421342,0.06133537,3067.3,3066.4,0.348932]
[1720578422333,2.296,3067.2,3066.4,0.348932]
[1720578422528,2.35535962,3067.2,3066.4,0.348932]
[1720578422942,2.35535962,3067.2,3066.2,0.22812]
[1720578422943,0.98,3067.1,3066.2,0.22812]
[1720578423244,1.41429208,3067.1,3066.2,1.20812]
[1720578423435,0.05935689,3067.0,3066.2,1.20812]
[1720578424725,3.322,3066.9,3065.6,2.4101]
[1720578425036,3.322,3066.9,3065.5,7.47]
[1720578425037,0.98,3066.5,3065.5,0.98]
[1720578425223,1.41428357,3066.5,3065.5,0.98]
[1720578425801,0.05933485,3066.4,3065.5,0.98]
[1720578426765,0.05933485,3066.4,3065.6,0.98]
[1720578427069,0.05933485,3066.4,3065.8,0.98]
[1720578427436,0.05933485,3066.4,3065.9,0.0652305]
[1720578427759,2.342,3066.6,3065.8,0.98]
[1720578427951,0.05909553,3066.3,3065.8,0.98]
[1720578428270,2.342,3066.6,3065.8,0.98]
[1720578428472,0.05909553,3066.2,3066.0,0.98]
[1720578428676,3.443,3067.6,3066.0,0.98]
[1720578428677,2.342,3067.0,3066.0,0.98]
[1720578428965,0.43437937,3066.9,3066.2,0.98]
[1720578429331,0.43434328,3066.9,3066.2,0.98]
[1720578429730,0.43434866,3066.9,3066.2,0.98]
[1720578430026,0.43431568,3066.9,3066.2,0.98]
[1720578430478,3.0,3067.3,3065.9,0.06522064]
[1720578430479,2.4916,3067.5,3066.4,0.98]
[1720578430621,1.41424122,3067.4,3066.4,0.98]
[1720578430834,0.39058412,3067.3,3066.4,0.98]
[1720578431067,0.82482534,3067.3,3066.4,0.98]
[1720578432164,0.82482534,3067.3,3066.2,0.98]
[1720578432165,0.98,3067.2,3066.2,0.98]
[1720578432384,1.41424122,3067.2,3066.2,0.98]
[1720578432529,0.98,3067.2,3066.3,0.398]
[1720578433394,0.98,3067.0,3066.1,3.0]
[1720578433678,0.98,3067.0,3066.0,0.98]
[1720578433679,0.98,3066.8,3065.8,3.98]
[1720578433828,0.98,3066.8,3065.7,9.7533]
[1720578433829,0.98,3066.6,3065.7,7.47]
[1720578434173,0.98,3066.4,3065.7,7.47]
[1720578434462,0.40384084,3066.5,3065.7,7.47]
[1720578434463,0.49345959,3066.5,3065.7,7.47]
[1720578434682,1.41416876,3066.6,3065.7,7.47]
[1720578434826,0.05929083,3066.4,3065.7,7.47]
[1720578435028,0.05929083,3066.4,3065.7,8.45]
[1720578435260,0.43416876,3066.5,3065.7,8.45]
[1720578435439,0.05929083,3066.3,3065.7,8.45]
[1720578435656,0.43416876,3066.5,3065.7,0.98]
[1720578435858,0.05929083,3066.2,3065.7,0.98]
[1720578436084,0.42126356,3066.5,3065.5,0.98]
[1720578436398,0.05929083,3066.1,3065.5,0.98]
[1720578436598,0.85581006,3066.5,3065.5,0.98]
[1720578436902,0.05929083,3066.4,3065.5,0.98]
[1720578437906,0.05929083,3066.4,3065.7,0.98]
[1720578438401,1.4145465,3066.6,3065.7,0.98]
[1720578438614,0.05929083,3066.3,3065.7,0.98]
[1720578438897,0.05929083,3066.2,3065.7,0.98]
[1720578439075,1.4145465,3066.6,3065.7,0.98]
[1720578439274,0.05929083,3066.1,3065.7,0.98]
[1720578439480,1.41453511,3066.6,3065.7,0.98]
[1720578439687,0.05929083,3066.0,3065.7,0.98]
[1720578439860,0.98,3066.6,3065.7,0.98]
[1720578439861,1.41453514,3066.6,3065.7,0.98]
[1720578440063,1.75408514,3066.6,3065.5,0.98]
[1720578440288,0.49382597,3066.5,3065.5,0.98]
[1720578440477,0.49386967,3066.5,3065.5,0.98]
[1720578442518,0.05929083,3066.5,3065.5,0.98]
[1720578442873,0.49387181,3066.5,3065.5,0.98]
[1720578445213,0.49387181,3066.5,3065.7,0.98]
[1720578445717,0.05929083,3066.5,3065.7,0.98]
[1720578445876,0.05929083,3066.5,3065.7,3.3407]
[1720578446077,0.05929083,3066.5,3065.8,0.33407]
[1720578446773,0.05929083,3066.5,3065.9,0.06523056]
[1720578446971,0.05929083,3066.5,3065.9,0.98]
[1720578447176,2.4155,3066.7,3065.9,0.98]
[1720578447393,0.05912853,3066.4,3065.9,0.98]
[1720578447615,2.4155,3066.7,3065.9,0.98]
[1720578447819,0.05912853,3066.3,3065.9,0.98]
[1720578448031,2.4155,3066.7,3065.9,0.98]
[1720578448239,0.05912853,3066.2,3065.9,1.347477]
[1720578448564,0.05912853,3066.1,3065.9,1.347477]
[1720578448717,0.43442865,3066.6,3065.9,0.98]
[1720578449089,0.05000008,3066.5,3065.7,0.98]
[1720578449292,0.05917255,3066.5,3065.7,0.98]
[1720578449493,0.43458359,3066.6,3065.7,0.98]
[1720578449729,0.05920559,3066.4,3065.7,0.98]
[1720578449940,1.07913591,3066.6,3065.7,0.98]
[1720578450094,0.05920559,3066.3,3065.7,0.98]
[1720578450426,1.07913591,3066.6,3065.7,0.98]
[1720578451070,0.05920559,3066.5,3065.7,0.98]
[1720578452821,0.05920559,3066.5,3065.8,0.06522867]
[1720578453356,0.05920559,3066.5,3065.7,0.98]
[1720578456818,2.4376,3066.4,3065.5,0.98]
[1720578457137,0.4937893,3066.3,3065.5,0.98]
[1720578459532,0.4938106,3066.3,3065.5,0.98]
[1720578459877,0.05918355,3066.3,3065.5,0.98]
[1720578461213,0.49376275,3066.3,3065.5,0.98]
[1720578462861,0.49376793,3066.3,3065.5,0.98]
[1720578463020,0.05918355,3066.3,3065.6,0.40452324]
[1720578463223,0.4937463,3066.3,3065.6,0.40452324]
[1720578465658,0.4937463,3066.3,3065.7,0.98]
[1720578466015,0.4937463,3066.3,3065.8,0.06523084]
[1720578466223,0.05918355,3066.3,3065.8,0.06523084]
[1720578466661,0.43446965,3066.6,3065.8,0.06523084]
[1720578466823,0.05894517,3066.2,3065.8,0.06523084]
[1720578467034,0.43446965,3066.6,3065.8,0.06523084]
[1720578467237,0.05898094,3066.1,3065.8,0.06523084]
[1720578467441,0.43446965,3066.6,3065.8,0.06523084]
[1720578467636,0.05898094,3066.0,3065.8,0.06523084]
[1720578467838,0.43446965,3066.6,3065.8,0.06523084]
[1720578468037,0.05865094,3065.9,3065.8,0.06523084]
[1720578468262,0.43446965,3066.6,3065.7,0.98]
[1720578468763,0.05865094,3066.5,3065.7,0.98]
[1720578469858,0.43451639,3066.6,3065.7,0.98]
[1720578470065,0.05865094,3066.4,3065.7,0.98]
[1720578470356,0.05865094,3066.3,3065.7,0.98]
[1720578470562,0.43452325,3066.6,3065.7,0.98]
[1720578470732,0.05865094,3066.2,3065.7,0.98]
[1720578470935,0.43451373,3066.6,3065.7,0.98]
[1720578471147,0.05865094,3066.1,3065.7,0.98]
[1720578471349,0.43451373,3066.6,3065.7,0.98]
[1720578471554,0.0586592,3066.0,3065.7,0.98]
[1720578471724,0.43451373,3066.6,3065.7,0.98]
[1720578471925,0.0586592,3065.9,3065.7,0.98]
[1720578472124,0.43451373,3066.6,3065.7,0.98]
[1720578472324,0.0586592,3065.8,3065.7,0.98]
[1720578472565,0.43451373,3066.6,3065.7,0.98]
[1720578473061,0.43449321,3066.6,3065.7,0.98]
[1720578475069,0.34149807,3066.5,3065.7,0.98]
[1720578475372,2.4323,3066.4,3065.6,0.40452324]
[1720578475544,0.43449321,3066.3,3065.6,0.40452324]
[1720578477065,0.43449321,3066.3,3065.7,0.98]
[1720578478281,0.43449321,3066.3,3065.7,1.04522997]
[1720578478629,0.43449321,3066.3,3065.6,0.40452324]
[1720578479972,0.43455906,3066.3,3065.6,0.40452324]
[1720578480130,2.4323,3066.4,3065.6,0.40452324]
[1720578480471,0.43460344,3066.3,3065.6,0.40452324]
[1720578481030,0.43462493,3066.3,3065.6,0.40452324]
[1720578482274,2.4323,3066.4,3065.6,0.40452324]
[1720578482475,0.43459986,3066.3,3065.6,0.40452324]
[1720578482834,0.05780284,3066.2,3065.6,0.40452324]
[1720578485953,0.43461167,3066.3,3065.6,0.40452324]
[1720578486152,0.05780284,3066.1,3065.6,0.40452324]
[1720578486394,0.43461167,3066.3,3065.7,0.98]
[1720578486694,0.05780284,3066.0,3065.7,0.98]
[1720578486868,0.43461167,3066.3,3065.7,0.98]
[1720578487048,0.05780284,3065.9,3065.7,0.98]
[1720578487252,0.43461167,3066.3,3065.7,0.98]
[1720578487477,0.05780284,3065.8,3065.7,3.3595]
[1720578487683,0.34149807,3066.5,3065.8,0.38292534]
[1720578487996,0.05780284,3066.4,3065.8,0.38292534]
[1720578489775,0.05780284,3066.4,3065.9,0.98]
[1720578489970,0.05780284,3066.4,3066.0,0.06522419]
[1720578490155,0.05780284,3066.4,3066.2,2.3933]
[1720578490359,0.34149807,3066.5,3066.3,1.38254917]
[1720578491413,0.34149807,3066.5,3066.3,1.31733]
[1720578491586,0.34149807,3066.5,3066.0,0.98]
[1720578492509,0.34149807,3066.5,3066.0,1.04521989]
[1720578493414,0.34149807,3066.5,3066.2,0.98]
[1720578494724,0.34149807,3066.5,3066.3,0.06521422]
[1720578494877,0.34149807,3066.5,3066.2,0.98]
[1720578497882,0.05369948,3066.4,3066.2,0.98]
[1720578498284,0.34149807,3066.5,3066.2,0.98]
[1720578498685,0.05369948,3066.4,3066.2,0.98]
[1720578498911,0.34149807,3066.5,3066.2,0.98]
[1720578499286,0.05369948,3066.4,3066.2,0.98]
[1720578499480,0.34149807,3066.5,3066.2,0.98]
[1720578499683,0.05369948,3066.4,3066.2,0.98]
[1720578500087,0.34149807,3066.5,3066.2,0.98]
[1720578500288,0.05369948,3066.4,3066.2,0.98]
[1720578500486,0.34149807,3066.5,3066.2,0.98]
[1720578500824,0.05369948,3066.4,3066.2,0.98]
[1720578501028,0.34149807,3066.5,3066.2,0.98]
[1720578501416,0.05369948,3066.4,3066.2,0.98]
[1720578501590,0.34149807,3066.5,3066.2,0.98]
[1720578502129,0.34149807,3066.5,3066.3,2.3062]
[1720578502421,0.34149807,3066.5,3066.3,2.37141429]
[1720578502422,0.05369948,3066.4,3066.3,2.37141429]
[1720578502624,2.4786,3067.6,3066.3,2.37141429]
[1720578502932,0.3414633,3067.0,3066.4,0.55]
[1720578503089,0.43407399,3067.5,3066.5,0.35734917]
[1720578503287,0.43407399,3067.5,3066.6,0.98]
[1720578503516,0.34146984,3067.0,3066.7,0.06520709]
[1720578503741,0.43407399,3067.5,3066.7,0.06520709]
[1720578503940,0.34146999,3067.0,3066.7,0.06520709]
[1720578504144,0.43407399,3067.5,3066.7,0.06520709]
[1720578504346,0.43407399,3067.5,3066.8,0.98]
[1720578504507,0.34146953,3067.0,3066.9,0.06520496]
[1720578504855,0.43407399,3067.5,3066.9,0.06520496]
[1720578505007,0.34146587,3067.2,3066.9,0.06520496]
[1720578506231,0.34146587,3067.2,3066.8,3.2583]
[1720578506550,0.34146587,3067.2,3066.6,0.98]
[1720578508221,0.34146587,3067.2,3066.6,4.70572414]
[1720578508420,0.34146587,3067.2,3066.7,0.06520324]
[1720578508628,0.45624474,3068.5,3067.1,3.3704]
[1720578508629,2.4607,3068.5,3067.1,3.3704]
[1720578508839,2.4607,3068.5,3067.7,0.98]
[1720578508840,0.34147949,3067.9,3067.7,0.98]
[1720578509372,0.34147425,3068.5,3067.7,3.4349]
[1720578509659,0.34147425,3068.5,3068.1,0.98]
[1720578511124,0.34147425,3068.5,3067.9,0.98]
[1720578512766,0.04563071,3068.4,3067.9,0.98]
[1720578513843,0.04563071,3068.4,3068.0,0.06517971]
[1720578514164,0.04563071,3068.4,3068.1,0.98]
[1720578514366,0.34144447,3068.9,3068.2,0.06517678]
[1720578514664,0.04588958,3068.3,3068.2,0.06517678]
[1720578514867,0.34144447,3068.9,3068.2,0.06517678]
[1720578515168,0.04588958,3068.8,3068.2,0.06517678]
[1720578515731,0.04588958,3068.8,3068.3,0.98]
[1720578516366,0.04588958,3068.8,3068.3,1.04517464]
[1720578516607,0.04588958,3068.8,3068.3,0.98]
[1720578516765,0.04588958,3068.8,3068.5,0.98]
[1720578516965,0.1116825,3069.0,3068.5,0.98]
[1720578517164,0.1116825,3069.0,3068.5,3.3605]
[1720578517165,0.04592538,3068.7,3068.5,3.3605]
[1720578517463,0.1116825,3069.0,3068.5,3.3605]
[1720578518012,0.0463275,3068.9,3068.5,3.3605]
[1720578518464,0.0463275,3068.9,3068.7,0.98]
[1720578518666,0.0463275,3068.9,3068.6,0.06517024]
[1720578521907,0.1116825,3069.0,3068.6,0.06517024]
[1720578524303,0.1116825,3069.0,3068.5,0.3316383]
[1720578524506,0.1116825,3069.0,3068.2,5.345]
[1720578524807,0.1116825,3069.0,3068.3,0.55]
[1720578525305,0.1116825,3069.0,3068.4,0.06516362]
[1720578525493,0.1116825,3069.0,3068.5,0.55]
[1720578525801,0.1116825,3069.0,3068.6,0.06516349]
[1720578526218,0.1116825,3069.0,3068.5,0.55]
[1720578526436,0.1116825,3069.0,3068.4,0.55]
[1720578527632,0.1116825,3069.0,3068.5,2.46696074]
[1720578527837,0.1116825,3069.0,3068.6,3.19669607]
[1720578528142,0.1116825,3069.0,3068.7,3.06515897]
[1720578528429,0.1116825,3069.0,3068.8,0.06515894]
[1720578529235,0.1116825,3069.0,3068.9,2.9947]
[1720578529435,0.1116825,3069.0,3068.9,5.9947]
[1720578529593,0.1116825,3069.0,3068.9,6.90068589]
[1720578532537,0.34133712,3070.0,3068.9,6.90068589]
[1720578532859,2.2641,3070.2,3069.0,5.345]
[1720578532860,0.04366972,3069.9,3069.0,5.345]
[1720578533010,0.04366972,3069.9,3069.1,0.55]
[1720578533213,2.2641,3070.2,3069.1,0.55]
[1720578533448,2.2641,3070.2,3069.2,0.5895]
[1720578533743,0.34130242,3070.4,3069.3,2.9947]
[1720578534055,0.04405215,3070.3,3069.3,3.05984648]
[1720578536363,0.04405215,3070.3,3069.4,2.345]
[1720578536530,0.34130242,3070.4,3069.5,1.15562096]
[1720578536712,2.2641,3070.5,3069.5,4.15562096]
[1720578537117,2.61366394,3070.8,3069.5,4.15562096]
[1720578537926,0.04408515,3070.7,3069.5,4.15562096]
[1720578538134,0.04408515,3070.7,3069.6,0.6500621]
[1720578538317,0.04408515,3070.7,3069.8,2.345]
[1720578538515,0.34126394,3070.8,3069.9,0.61513291]
[1720578538738,0.34126394,3070.8,3069.9,3.61513291]
[1720578538947,0.04430788,3070.7,3070.0,0.89601329]
[1720578539167,0.04430788,3070.7,3070.1,0.0651343]
[1720578539621,0.04430788,3070.7,3070.0,0.89601329]
[1720578540261,0.04430788,3070.7,3069.1,0.57325289]
[1720578540262,2.323,3070.6,3069.2,2.3187]
[1720578540477,2.323,3070.6,3068.9,4.72884592]
[1720578540478,3.0,3070.4,3068.9,4.72884592]
[1720578540623,3.0,3070.4,3068.8,7.47]
[1720578540624,2.37300008,3070.3,3068.8,7.47]
[1720578540823,2.37300008,3070.3,3068.4,2.3187]
[1720578540824,2.323,3070.1,3068.4,2.3187]
[1720578541054,0.05000008,3070.0,3068.4,2.3187]
[1720578541475,0.0444151,3069.9,3068.4,2.3187]
[1720578542451,0.09441518,3069.9,3068.4,2.3187]
[1720578542680,0.09441518,3069.9,3068.4,0.46637]
[1720578542681,2.72544152,3069.8,3068.4,0.46637]
[1720578543180,0.04385134,3069.7,3068.4,0.46637]
[1720578544693,2.4247,3069.5,3067.9,7.47]
[1720578544875,3.0,3069.6,3067.7,2.345]
[1720578544876,2.4247,3069.3,3067.7,2.345]
[1720578545593,0.04376604,3069.2,3067.7,2.345]
[1720578545884,0.29561265,3069.2,3067.8,0.46812]
[1720578546057,0.29561265,3069.2,3067.8,0.5332981]
[1720578546243,0.29561265,3069.2,3067.8,3.5332981]
[1720578546898,0.29561265,3069.2,3067.9,0.55]
[1720578547101,0.29561265,3069.2,3068.0,0.40832981]
[1720578548673,2.4957,3069.1,3068.0,0.40832981]
[1720578549083,0.0436945,3069.0,3068.0,0.40832981]
[1720578551359,0.2056945,3069.0,3068.0,0.40832981]
[1720578552660,0.2056945,3069.0,3067.9,0.55]
[1720578555117,2.3605,3068.9,3067.9,0.55]
[1720578555680,0.0435074,3068.8,3067.6,0.55]
[1720578556434,0.0435074,3068.8,3067.5,0.55]
[1720578557728,0.0435074,3068.8,3067.7,2.345]
[1720578557904,0.0435074,3068.8,3067.8,3.21431792]
[1720578558238,0.0435074,3068.8,3067.9,3.0]
[1720578558646,2.38590008,3068.7,3067.8,0.24101792]
[1720578558935,2.38590008,3068.7,3067.4,3.0]
[1720578558936,2.42928086,3068.7,3067.4,3.0]
[1720578559143,2.42928086,3068.7,3067.5,0.55]
[1720578559310,2.42928086,3068.7,3067.4,3.55]
[1720578559515,2.37928078,3068.7,3067.4,1.0845]
[1720578559727,2.37928078,3068.7,3067.4,4.0845]
[1720578562122,2.37928078,3068.7,3067.4,4.14968621]
[1720578565373,0.04338078,3068.7,3067.7,2.345]
[1720578565531,0.04338078,3068.7,3067.8,3.19337137]
[1720578565725,0.162,3069.0,3067.8,3.19337137]
[1720578566036,0.162,3069.0,3067.9,3.0]
[1720578566240,0.162,3069.0,3068.0,0.61516778]
[1720578566449,0.04040898,3068.9,3068.0,0.61516778]
[1720578566658,0.04040898,3068.9,3068.1,0.36151678]
[1720578566856,0.04040898,3068.9,3068.2,0.61516783]
[1720578567081,0.04040898,3068.9,3068.3,0.06516783]
[1720578567242,0.04040898,3068.9,3068.4,0.55]
[1720578567446,0.162,3069.0,3068.4,0.55]
[1720578567767,0.162,3069.0,3068.5,0.06516782]
[1720578568559,0.162,3069.0,3068.4,0.55]
[1720578568760,0.162,3069.0,3068.2,0.06516783]
[1720578568761,0.162,3069.0,3068.3,0.55]
[1720578568985,0.162,3069.0,3068.4,0.06516784]
[1720578569143,0.162,3069.0,3068.3,0.55]
[1720578569475,0.162,3069.0,3068.2,0.55]
[1720578569642,2.4007,3068.9,3068.2,0.55]
[1720578573672,2.4007,3068.9,3068.3,0.06517157]
[1720578573906,2.4007,3068.9,3068.4,0.55]
[1720578574207,2.4007,3068.9,3068.2,0.55]
[1720578574402,2.4007,3068.9,3068.3,0.39115168]
[1720578574609,2.4007,3068.9,3068.4,0.55]
[1720578574783,0.04051099,3068.8,3068.2,0.55]
[1720578574981,2.4007,3068.9,3068.0,0.55]
[1720578575706,0.162,3069.0,3068.2,2.2997]
[1720578575905,0.162,3069.0,3068.3,0.6151682]
[1720578576109,0.162,3069.0,3068.4,0.29148682]
[1720578576726,0.04051099,3068.9,3068.4,0.29148682]
[1720578577029,0.04051099,3068.9,3068.5,0.06516827]
[1720578577384,0.04051099,3068.9,3068.4,0.29148682]
[1720578577385,0.04051099,3068.9,3068.4,0.3566551]
[1720578577785,0.04051099,3068.9,3068.5,0.55]
[1720578577988,0.04051099,3068.9,3068.6,0.06516508]
[1720578578221,0.162,3069.0,3068.7,0.55]
[1720578578522,0.04065986,3068.8,3068.7,0.55]
[1720578578719,0.162,3069.0,3068.7,0.55]
[1720578578912,0.04067916,3068.8,3068.7,0.55]
[1720578579130,0.162,3069.0,3068.7,0.55]
[1720578579353,0.162,3069.0,3068.4,0.29148682]
[1720578579354,0.04067916,3068.8,3068.5,0.55]
[1720578579653,0.162,3069.0,3068.5,0.55]
[1720578580022,0.162,3069.0,3068.6,0.06516314]
[1720578580348,0.04067916,3068.9,3068.7,0.55]
[1720578581147,0.04067916,3068.9,3068.5,0.55]
[1720578581741,0.162,3069.0,3068.5,0.55]
[1720578583013,0.162,3069.0,3068.6,0.0651616]
[1720578583351,0.04067916,3068.9,3068.7,0.55]
[1720578583843,0.04067916,3068.9,3068.8,0.06516213]
[1720578584049,0.162,3069.0,3068.8,0.61516213]
[1720578584250,0.162,3069.0,3068.9,0.55]
[1720578585122,0.162,3069.0,3068.6,0.55]
[1720578587550,0.162,3069.0,3068.5,0.55]
[1720578588923,0.162,3069.0,3068.6,0.06516152]
[1720578589171,0.162,3069.0,3068.7,0.55]
[1720578589380,0.162,3069.0,3068.8,0.06515721]
[1720578589671,0.162,3069.0,3068.9,0.55]
[1720578589870,0.162,3069.0,3068.9,3.86082572]
[1720578590971,0.162,3069.0,3068.9,0.86082572]
[1720578591151,0.162,3069.0,3068.9,0.55]
[1720578600557,0.162,3069.0,3068.6,3.0]
[1720578600800,0.162,3069.0,3068.4,0.29148682]
[1720578602084,0.162,3069.0,3068.5,0.55]
[1720578602388,0.162,3069.0,3068.5,0.61516405]
[1720578603520,0.162,3069.0,3068.5,0.55]
[1720578603720,0.162,3069.0,3068.5,0.93414868]
[1720578605925,0.162,3069.0,3068.5,0.38414868]
[1720578607104,2.4973,3069.2,3068.5,0.38414868]
[1720578613534,2.4973,3069.2,3068.4,0.29148682]
[1720578614042,2.4973,3069.2,3068.2,7.47]
[1720578614043,2.477,3069.0,3068.2,7.47]
[1720578614199,2.4179,3068.8,3068.2,7.47]
[1720578614912,2.4179,3068.6,3068.2,7.47]
[1720578618053,3.0,3069.5,3068.2,7.47]
[1720578618054,2.4179,3069.1,3068.2,7.47]
[1720578618229,0.43335847,3069.0,3068.2,7.47]
[1720578618424,0.47209756,3069.0,3068.2,7.47]
[1720578618756,0.47209756,3069.0,3068.3,0.44400125]
[1720578618757,0.47208494,3069.0,3068.3,0.44400125]
[1720578619065,2.4179,3068.9,3068.2,7.47]
[1720578619435,2.45666389,3068.9,3068.2,7.47]
[1720578619760,2.45666389,3068.9,3067.8,7.47]
[1720578619923,2.45666389,3068.9,3067.9,3.55]
[1720578621360,2.45666389,3068.9,3067.9,3.0]
[1720578621656,2.4179,3068.7,3067.9,3.0]
[1720578622022,0.03876391,3068.6,3067.9,3.0]
[1720578624264,0.03876391,3068.6,3067.5,7.47]
[1720578624265,2.4179,3068.5,3067.5,7.47]
[1720578624471,2.4179,3068.2,3067.1,7.47]
[1720578624649,2.46790008,3068.1,3067.1,8.46211383]
[1720578624965,2.98787678,3068.1,3067.1,8.46211383]
[1720578625170,2.50658677,3068.1,3067.1,8.46211383]
[1720578625328,2.46790008,3068.0,3066.7,7.47]
[1720578625660,2.46790008,3068.0,3066.3,9.8516]
[1720578625661,2.4179,3067.8,3066.3,9.8516]
[1720578625877,2.4179,3067.8,3066.5,2.4888]
[1720578626025,2.4179,3067.8,3066.6,0.06519857]
[1720578626026,0.03857914,3067.7,3066.6,0.06519857]
[1720578626226,0.03857914,3067.7,3066.7,2.4888]
[1720578626423,2.4944,3068.1,3066.8,0.06519221]
[1720578626676,2.4944,3068.1,3066.9,0.25539922]
[1720578626822,2.4944,3068.1,3067.0,0.61519097]
[1720578627027,0.03857087,3068.0,3067.0,0.61519097]
[1720578627268,2.4944,3068.1,3067.0,0.61519097]
[1720578627424,0.03857087,3067.9,3067.0,0.61519097]
[1720578627623,2.4944,3068.1,3067.1,2.2611]
[1720578627824,2.3389,3069.1,3067.2,0.90281423]
[1720578628040,0.03850741,3068.0,3067.3,0.06518397]
[1720578628344,2.77247369,3069.0,3067.4,0.55]
[1720578628345,2.3389,3069.0,3067.4,0.55]
[1720578628661,2.4388,3068.8,3067.5,0.06518499]
[1720578628873,2.4388,3068.8,3067.6,0.55]
[1720578629026,2.4388,3068.8,3067.7,0.06518071]
[1720578629227,0.03862327,3068.7,3067.8,0.55]
[1720578629424,0.03862327,3068.7,3067.9,0.06518071]
[1720578630362,0.03862327,3068.7,3067.8,0.55]
[1720578630764,0.03862327,3068.7,3067.9,0.06518078]
[1720578632247,2.4388,3068.8,3067.9,0.06518078]
[1720578632582,0.03866464,3068.7,3067.9,0.06518078]
[1720578632947,2.4388,3068.8,3067.8,0.55]
[1720578633151,2.30636464,3068.7,3067.9,0.355]
[1720578633487,2.30636464,3068.7,3067.6,3.0]
[1720578633488,2.2677,3068.7,3067.6,3.0]
[1720578633646,2.2677,3068.7,3067.6,3.0651868]
[1720578633850,0.03866464,3068.6,3067.7,0.55]
[1720578634171,2.4766,3068.5,3067.8,0.36151868]
[1720578634378,2.4766,3068.5,3067.6,3.0]
[1720578634679,0.03866464,3068.4,3067.6,3.06518675]
[1720578634846,0.37996056,3068.4,3067.6,3.06518675]
[1720578636458,0.34129592,3068.4,3067.7,0.55]
[1720578636692,0.34129592,3068.4,3067.8,0.42669672]
[1720578636866,0.34129592,3068.4,3067.9,0.55]
[1720578642994,0.34129592,3068.4,3067.9,0.61517799]